Workbook

Sheet March
A1: JUNE
B2: Site ID # | C2: propertyzip | D2: sampledate | E2: sampletime | F2: Total THMs | G2: Chloroform | H2: Bromodichloromethane | I2: Dibromochloromethane | J2: Bromoform | K2: Total Haloacetic acids (HAA5) | L2: Total Haloacetic acids (HAA9) | M2: Monochloroacetic acid | N2: Dichloroacetic acid | O2: Trichloroacetic acid | P2: Bromodichloroacetic acid | Q2: Bromochloroacetic acid | R2: Chlorodibromoacetic acid | S2: Tribromoacetic acid | T2: Dibromoacetic acid | U2: Monobromoacetic acid
B3: 1 | C3: 48505 | D3: 2016-06-02 | E3: 11:01:00 | F3: =SUM(Table17[[#This Row],[Chloroform]:[Bromoform]]) -> 21.5 | G3: 11.8 | H3: 7.2 | I3: 2.5 | J3: BDL | K3: =SUM(M3,N3,O3,T3,U3) -> 14.3 | L3: =SUM(M3:U3) -> 19.3 | M3: BDL | N3: 9.5 | O3: 4.8 | P3: 2.9 | Q3: 2.1 | R3: BDL | S3: BDL | T3: BDL | U3: BDL
B4: 5 | C4: 48506 | D4: 2016-06-02 | E4: 10:33:00 | F4: =SUM(Table17[[#This Row],[Chloroform]:[Bromoform]]) -> 17.8 | G4: 9.8 | H4: 5.8 | I4: 2.3 | J4: BDL | K4: 10.6 | L4: 15.0 | M4: BDL | N4: 7.2 | O4: 3.5 | P4: 2.4 | Q4: 2.0 | R4: BDL | S4: BDL | T4: BDL | U4: BDL
B5: 10 | C5: 48503 | D5: 2016-06-02 | E5: 09:49:00 | F5: =SUM(Table17[[#This Row],[Chloroform]:[Bromoform]]) -> 19.9 | G5: 11.2 | H5: 6.3 | I5: 2.3 | J5: BDL | K5: 12.7 | L5: 17.3 | M5: BDL | N5: 8.5 | O5: 4.2 | P5: 2.6 | Q5: 2.0 | R5: BDL | S5: BDL | T5: BDL | U5: BDL
B6: 9 | C6: 48503 | D6: 2016-06-02 | E6: 09:24:00 | F6: =SUM(Table17[[#This Row],[Chloroform]:[Bromoform]]) -> 24.2 | G6: 14.4 | H6: 7.3 | I6: 2.5 | J6: BDL | K6: 14.4 | L6: 19.2 | M6: BDL | N6: 9.6 | O6: 4.8 | P6: 2.7 | Q6: 2.1 | R6: BDL | S6: BDL | T6: BDL | U6: BDL
B7: 8 | C7: 48506 | D7: 2016-06-01 | E7: 16:49:00 | F7: =SUM(Table17[[#This Row],[Chloroform]:[Bromoform]]) -> 20.5 | G7: 11.9 | H7: 6.3 | I7: 2.3 | J7: BDL | K7: 13.0 | L7: 17.7 | M7: BDL | N7: 8.6 | O7: 4.4 | P7: 2.7 | Q7: 2.0 | R7: BDL | S7: BDL | T7: BDL | U7: BDL
B8: 6 | C8: 48506 | D8: 2016-06-01 | E8: 16:15:00 | F8: =SUM(Table17[[#This Row],[Chloroform]:[Bromoform]]) -> 27.2 | G8: 16.9 | H8: 7.8 | I8: 2.5 | J8: BDL | K8: 16.3 | L8: 21.5 | M8: BDL | N8: 10.7 | O8: 5.6 | P8: 3.0 | Q8: 2.2 | R8: BDL | S8: BDL | T8: BDL | U8: BDL
B9: 4 | C9: 48503 | D9: 2016-06-01 | E9: 15:31:00 | F9: =SUM(Table17[[#This Row],[Chloroform]:[Bromoform]]) -> 26.9 | G9: 16.3 | H9: 8.2 | I9: 2.4 | J9: BDL | K9: 16.9 | L9: 22.2 | M9: BDL | N9: 10.9 | O9: 6.0 | P9: 3.1 | Q9: 2.3 | R9: BDL | S9: BDL | T9: BDL | U9: BDL
B10: 3 | C10: 48504 | D10: 2016-06-01 | E10: 15:01:00 | F10: =SUM(Table17[[#This Row],[Chloroform]:[Bromoform]]) -> 26.8 | G10: 16.1 | H10: 8.2 | I10: 2.5 | J10: BDL | K10: 19.1 | L10: 24.9 | M10: BDL | N10: 12.4 | O10: 6.7 | P10: 3.4 | Q10: 2.4 | R10: BDL | S10: BDL | T10: BDL | U10: BDL
B11: 2 | C11: 48505 | D11: 2016-06-01 | E11: 14:26:00 | F11: =SUM(Table17[[#This Row],[Chloroform]:[Bromoform]]) -> 31.9 | G11: 20.4 | H11: 9.1 | I11: 2.4 | J11: BDL | K11: 20.0 | L11: 26.0 | M11: BDL | N11: 12.9 | O11: 7.1 | P11: 3.6 | Q11: 2.4 | R11: BDL | S11: BDL | T11: BDL | U11: BDL
B12: 7 | C12: 48506 | D12: 2016-06-01 | E12: 13:09:00 | F12: =SUM(Table17[[#This Row],[Chloroform]:[Bromoform]]) -> 26.2 | G12: 15.9 | H12: 7.9 | I12: 2.4 | J12: BDL | K12: 15.1 | L12: 20.0 | M12: BDL | N12: 9.8 | O12: 5.4 | P12: 2.9 | Q12: 2.0 | R12: BDL | S12: BDL | T12: BDL | U12: BDL
B13: 21 | C13: 48505 | D13: 2016-06-01 | E13: 11:11:00 | F13: =SUM(Table17[[#This Row],[Chloroform]:[Bromoform]]) -> 27.5 | G13: 15.9 | H13: 8.8 | I13: 2.9 | J13: BDL | K13: 16.2 | L13: 21.5 | M13: BDL | N13: 10.4 | O13: 5.8 | P13: 3.1 | Q13: 2.3 | R13: BDL | S13: BDL | T13: BDL | U13: BDL
B14: 24 | C14: 48505 | D14: 2016-06-01 | E14: 10:40:00 | F14: =SUM(Table17[[#This Row],[Chloroform]:[Bromoform]]) -> 25.0 | G14: 14.0 | H14: 8.1 | I14: 2.9 | J14: BDL | K14: 14.0 | L14: 19.1 | M14: BDL | N14: 9.1 | O14: 4.9 | P14: 2.9 | Q14: 2.2 | R14: BDL | S14: BDL | T14: BDL | U14: BDL
B15: 23 | C15: 48505 | D15: 2016-06-01 | E15: 10:03:00 | F15: =SUM(Table17[[#This Row],[Chloroform]:[Bromoform]]) -> 43.6 | G15: 29.4 | H15: 11.1 | I15: 3.1 | J15: BDL | K15: 19.1 | L15: 25.0 | M15: BDL | N15: 12.1 | O15: 7.0 | P15: 3.6 | Q15: 2.3 | R15: BDL | S15: BDL | T15: BDL | U15: BDL
B16: 22 | C16: 48506 | D16: 2016-06-01 | E16: 09:40:00 | F16: =SUM(Table17[[#This Row],[Chloroform]:[Bromoform]]) -> 25.4 | G16: 14.6 | H16: 8.0 | I16: 2.8 | J16: BDL | K16: 13.6 | L16: 18.5 | M16: BDL | N16: 8.9 | O16: 4.7 | P16: 2.7 | Q16: 2.2 | R16: BDL | S16: BDL | T16: BDL | U16: BDL
B17: 20 | C17: 48504 | D17: 2016-06-01 | E17: 09:06:00 | F17: =SUM(Table17[[#This Row],[Chloroform]:[Bromoform]]) -> 39.0 | G17: 25.5 | H17: 10.5 | I17: 3.0 | J17: BDL | K17: 23.1 | L17: 29.1 | M17: BDL | N17: 15.5 | O17: 7.6 | P17: 3.3 | Q17: 2.6 | R17: BDL | S17: BDL | T17: BDL | U17: BDL
B18: 14 | C18: 48507 | D18: 2016-05-31 | E18: 15:20:00 | F18: =SUM(Table17[[#This Row],[Chloroform]:[Bromoform]]) -> 39.1 | G18: 26.1 | H18: 10.2 | I18: 2.8 | J18: BDL | K18: 19.7 | L18: 25.7 | M18: BDL | N18: 12.6 | O18: 7.1 | P18: 3.5 | Q18: 2.5 | R18: BDL | S18: BDL | T18: BDL | U18: BDL
B19: 13 | C19: 48507 | D19: 2016-05-31 | E19: 14:31:00 | F19: =SUM(Table17[[#This Row],[Chloroform]:[Bromoform]]) -> 33.3 | G19: 20.7 | H19: 9.7 | I19: 3.0 | J19: BDL | K19: 19.4 | L19: 25.5 | M19: BDL | N19: 12.4 | O19: 7.0 | P19: 3.6 | Q19: 2.5 | R19: BDL | S19: BDL | T19: BDL | U19: BDL
B20: 19 | C20: 48504 | D20: 2016-05-31 | E20: 13:55:00 | F20: =SUM(Table17[[#This Row],[Chloroform]:[Bromoform]]) -> 39.3 | G20: 25.5 | H20: 10.8 | I20: 3.0 | J20: BDL | K20: 20.4 | L20: 23.7 | M20: BDL | N20: 13.0 | O20: 7.4 | P20: 3.3 | Q20: BDL | R20: BDL | S20: BDL | T20: BDL | U20: BDL
B21: 18 | C21: 48505 | D21: 2016-05-31 | E21: 13:18:00 | F21: =SUM(Table17[[#This Row],[Chloroform]:[Bromoform]]) -> 32.3 | G21: 19.3 | H21: 9.9 | I21: 3.1 | J21: BDL | K21: 16.4 | L21: 19.8 | M21: BDL | N21: 9.9 | O21: 6.5 | P21: 3.4 | Q21: BDL | R21: BDL | S21: BDL | T21: BDL | U21: BDL
B22: 17 | C22: 48504 | D22: 2016-05-31 | E22: 11:51:00 | F22: =SUM(Table17[[#This Row],[Chloroform]:[Bromoform]]) -> 37.1 | G22: 24.6 | H22: 9.5 | I22: 3.0 | J22: BDL | K22: 23.0 | L22: 29.6 | M22: BDL | N22: 15.4 | O22: 7.6 | P22: 3.8 | Q22: 2.9 | R22: BDL | S22: BDL | T22: BDL | U22: BDL
B23: 16 | C23: 48503 | D23: 2016-05-31 | E23: 11:19:00 | F23: =SUM(Table17[[#This Row],[Chloroform]:[Bromoform]]) -> 35.7 | G23: 23.2 | H23: 9.7 | I23: 2.8 | J23: BDL | K23: 21.0 | L23: 27.3 | M23: BDL | N23: 13.7 | O23: 7.3 | P23: 3.8 | Q23: 2.6 | R23: BDL | S23: BDL | T23: BDL | U23: BDL
B24: 15 | C24: 48507 | D24: 2016-05-31 | E24: 10:44:00 | F24: =SUM(Table17[[#This Row],[Chloroform]:[Bromoform]]) -> 31.8 | G24: 20.0 | H24: 9.2 | I24: 2.6 | J24: BDL | K24: 18.7 | L24: 24.5 | M24: BDL | N24: 11.7 | O24: 7.0 | P24: 3.6 | Q24: 2.2 | R24: BDL | S24: BDL | T24: BDL | U24: BDL
B25: 12 | C25: 48507 | D25: 2016-05-31 | E25: 09:53:00 | F25: =SUM(Table17[[#This Row],[Chloroform]:[Bromoform]]) -> 30.0 | G25: 19.0 | H25: 8.6 | I25: 2.4 | J25: BDL | K25: 19.0 | L25: 24.7 | M25: BDL | N25: 11.7 | O25: 7.3 | P25: 3.7 | Q25: 2.0 | R25: BDL | S25: BDL | T25: BDL | U25: BDL
B26: 11 | C26: 48507 | D26: 2016-05-31 | E26: 09:17:00 | F26: =SUM(Table17[[#This Row],[Chloroform]:[Bromoform]]) -> 30.6 | G26: 19.1 | H26: 8.9 | I26: 2.6 | J26: BDL | K26: 17.2 | L26: 20.5 | M26: BDL | N26: 10.3 | O26: 6.9 | P26: 3.3 | Q26: BDL | R26: BDL | S26: BDL | T26: BDL | U26: BDL
B27: Notes:
B28: (1) All units in micrograms per liter (µg/L), also commonly called parts per billion (ppb)
B29: (2) BDL = Below Detection Limit
B30: (3) The analytical laboratory has not completed the quality assurance/quality control data package, therefore, June data is still considered preliminary.
A32: MAY
B33: Site ID # | C33: propertyzip | D33: sampledate | E33: sampletime | F33: Total THMs | G33: Chloroform | H33: Bromodichloromethane | I33: Dibromochloromethane | J33: Bromoform | K33: Total Haloacetic acids (HAA5) | L33: Total Haloacetic acids (HAA9) | M33: Monochloroacetic acid | N33: Dichloroacetic acid | O33: Trichloroacetic acid | P33: Bromodichloroacetic acid | Q33: Bromochloroacetic acid | R33: Chlorodibromoacetic acid | S33: Tribromoacetic acid | T33: Dibromoacetic acid | U33: Monobromoacetic acid
B34: 24 | C34: 48505 | D34: 2016-05-04 | E34: 11:11:00 | F34: =SUM(G34:J34) -> 19.8 | G34: 11.0 | H34: 6.6 | I34: 2.2 | J34: BDL | K34: =SUM(M34,N34,O34,T34,U34) -> 12.7 | L34: =SUM(M34:U34) -> 14.9 | M34: BDL | N34: 8.4 | O34: 4.3 | P34: 2.3 | Q34: BDL | R34: BDL | S34: BDL | T34: BDL | U34: BDL
B35: 23 | C35: 48505 | D35: 2016-05-04 | E35: 10:41:00 | F35: 23.9 | G35: 14.3 | H35: 7.2 | I35: 2.4 | J35: BDL | K35: 13.6 | L35: 15.8 | M35: BDL | N35: 9.1 | O35: 4.5 | P35: 2.2 | Q35: BDL | R35: BDL | S35: BDL | T35: BDL | U35: BDL
B36: 22 | C36: 48506 | D36: 2016-05-04 | E36: 10:00:00 | F36: 19.3 | G36: 10.6 | H36: 6.5 | I36: 2.2 | J36: BDL | K36: 12.8 | L36: 17.3 | M36: BDL | N36: 8.5 | O36: 4.3 | P36: 2.3 | Q36: 2.2 | R36: BDL | S36: BDL | T36: BDL | U36: BDL
B37: 21 | C37: 48505 | D37: 2016-05-04 | E37: 09:37:00 | F37: 20.0 | G37: 11.2 | H37: 6.6 | I37: 2.2 | J37: BDL | K37: 13.0 | L37: 17.4 | M37: BDL | N37: 8.7 | O37: 4.3 | P37: 2.2 | Q37: 2.2 | R37: BDL | S37: BDL | T37: BDL | U37: BDL
B38: 20 | C38: 48504 | D38: 2016-05-04 | E38: 09:07:00 | F38: 26.9 | G38: 16.7 | H38: 7.9 | I38: 2.3 | J38: BDL | K38: 18.2 | L38: 23.2 | M38: BDL | N38: 12.5 | O38: 5.7 | P38: 2.6 | Q38: 2.4 | R38: BDL | S38: BDL | T38: BDL | U38: BDL
B39: 14 | C39: 48507 | D39: 2016-05-04 | E39: 08:16:00 | F39: 23.4 | G39: 13.8 | H39: 7.3 | I39: 2.3 | J39: BDL | K39: 14.7 | L39: 19.1 | M39: BDL | N39: 10.0 | O39: 4.7 | P39: 2.2 | Q39: 2.2 | R39: BDL | S39: BDL | T39: BDL | U39: BDL
B40: 13 | C40: 48507 | D40: 2016-05-03 | E40: 15:27:00 | F40: 22.0 | G40: 12.8 | H40: 6.9 | I40: 2.3 | J40: BDL | K40: 14.2 | L40: 18.9 | M40: BDL | N40: 9.5 | O40: 4.7 | P40: 2.6 | Q40: 2.0 | R40: BDL | S40: BDL | T40: BDL | U40: BDL
B41: 19 | C41: 48504 | D41: 2016-05-03 | E41: 14:57:00 | F41: 25.4 | G41: 15.5 | H41: 7.5 | I41: 2.4 | J41: BDL | K41: 17.0 | L41: 22.0 | M41: BDL | N41: 11.6 | O41: 5.4 | P41: 2.7 | Q41: 2.3 | R41: BDL | S41: BDL | T41: BDL | U41: BDL
B42: 17 | C42: 48504 | D42: 2016-05-03 | E42: 14:29:00 | F42: 25.2 | G42: 15.2 | H42: 7.6 | I42: 2.4 | J42: BDL | K42: 18.6 | L42: 23.9 | M42: BDL | N42: 12.8 | O42: 5.8 | P42: 2.7 | Q42: 2.5 | R42: BDL | S42: BDL | T42: BDL | U42: BDL
B43: 18 | C43: 48505 | D43: 2016-05-03 | E43: 13:53:00 | F43: 22.0 | G43: 12.8 | H43: 6.9 | I43: 2.3 | J43: BDL | K43: 13.9 | L43: 18.2 | M43: BDL | N43: 9.1 | O43: 4.7 | P43: 2.3 | Q43: 2.0 | R43: BDL | S43: BDL | T43: BDL | U43: BDL
B44: 16 | C44: 48503 | D44: 2016-05-03 | E44: 11:35:00 | F44: 20.5 | G44: 11.5 | H44: 6.8 | I44: 2.2 | J44: BDL | K44: 15.0 | L44: 19.7 | M44: BDL | N44: 10.0 | O44: 5.0 | P44: 2.6 | Q44: 2.2 | R44: BDL | S44: BDL | T44: BDL | U44: BDL
B45: 15 | C45: 48507 | D45: 2016-05-03 | E45: 10:56:00 | F45: 21.9 | G45: 12.3 | H45: 7.3 | I45: 2.4 | J45: BDL | K45: 14.4 | L45: 19.0 | M45: BDL | N45: 9.6 | O45: 4.8 | P45: 2.5 | Q45: 2.1 | R45: BDL | S45: BDL | T45: BDL | U45: BDL
B46: 12 | C46: 48507 | D46: 2016-05-03 | E46: 10:01:00 | F46: 22.2 | G46: 13.0 | H46: 6.8 | I46: 2.4 | J46: BDL | K46: 15.3 | L46: 18.2 | M46: BDL | N46: 10.2 | O46: 5.1 | P46: 2.9 | Q46: BDL | R46: BDL | S46: BDL | T46: BDL | U46: BDL
B47: 11 | C47: 48507 | D47: 2016-05-03 | E47: 09:25:00 | F47: 21.6 | G47: 12.5 | H47: 6.9 | I47: 2.3 | J47: BDL | K47: 14.5 | L47: 17.3 | M47: BDL | N47: 9.7 | O47: 4.9 | P47: 2.8 | Q47: BDL | R47: BDL | S47: BDL | T47: BDL | U47: BDL
B48: 10 | C48: 48503 | D48: 2016-05-02 | E48: 16:38:00 | F48: 24.3 | G48: 14.9 | H48: 7.1 | I48: 2.3 | J48: BDL | K48: 19.6 | L48: 25.4 | M48: BDL | N48: 13.4 | O48: 6.2 | P48: 3.3 | Q48: 2.5 | R48: BDL | S48: BDL | T48: BDL | U48: BDL
B49: 9 | C49: 48503 | D49: 2016-05-02 | E49: 16:17:00 | F49: 19.6 | G49: 11.3 | H49: 6.1 | I49: 2.2 | J49: BDL | K49: 14.2 | L49: 19.1 | M49: BDL | N49: 9.6 | O49: 4.7 | P49: 2.8 | Q49: 2.1 | R49: BDL | S49: BDL | T49: BDL | U49: BDL
B50: 8 | C50: 48506 | D50: 2016-05-02 | E50: 15:40:00 | F50: 18.5 | G50: 10.5 | H50: 5.9 | I50: 2.1 | J50: BDL | K50: 13.1 | L50: 17.6 | M50: BDL | N50: 8.7 | O50: 4.4 | P50: 2.6 | Q50: 2.0 | R50: BDL | S50: BDL | T50: BDL | U50: BDL
B51: 7 | C51: 48506 | D51: 2016-05-02 | E51: 15:21:00 | F51: 23.3 | G51: 14.2 | H51: 6.8 | I51: 2.3 | J51: BDL | K51: 13.9 | L51: 16.6 | M51: BDL | N51: 9.2 | O51: 4.6 | P51: 2.7 | Q51: BDL | R51: BDL | S51: BDL | T51: BDL | U51: BDL
B52: 6 | C52: 48506 | D52: 2016-05-02 | E52: 14:38:00 | F52: 19.8 | G52: 11.3 | H52: 6.3 | I52: 2.2 | J52: BDL | K52: 13.9 | L52: 18.4 | M52: BDL | N52: 9.3 | O52: 4.5 | P52: 2.4 | Q52: 2.1 | R52: BDL | S52: BDL | T52: BDL | U52: BDL
B53: 5 | C53: 48506 | D53: 2016-05-02 | E53: 14:10:00 | F53: 17.8 | G53: 9.8 | H53: 5.9 | I53: 2.1 | J53: BDL | K53: 13.0 | L53: 15.8 | M53: BDL | N53: 8.5 | O53: 4.5 | P53: 2.8 | Q53: BDL | R53: BDL | S53: BDL | T53: BDL | U53: BDL
B54: 4 | C54: 48503 | D54: 2016-05-02 | E54: 11:31:00 | F54: 23.2 | G54: 13.7 | H54: 7.1 | I54: 2.4 | J54: BDL | K54: 14.2 | L54: 19.0 | M54: BDL | N54: 9.6 | O54: 4.5 | P54: 2.8 | Q54: 2.0 | R54: BDL | S54: BDL | T54: BDL | U54: BDL
B55: 3 | C55: 48504 | D55: 2016-05-02 | E55: 10:59:00 | F55: 20.2 | G55: 11.4 | H55: 6.4 | I55: 2.4 | J55: BDL | K55: 16.1 | L55: 20.8 | M55: BDL | N55: 11.5 | O55: 4.6 | P55: 2.6 | Q55: 2.0 | R55: BDL | S55: BDL | T55: BDL | U55: BDL
B56: 2 | C56: 48505 | D56: 2016-05-02 | E56: 10:17:00 | F56: 19.4 | G56: 11.0 | H56: 6.3 | I56: 2.2 | J56: BDL | K56: 14.3 | L56: 19.0 | M56: BDL | N56: 9.8 | O56: 4.5 | P56: 2.7 | Q56: 2.0 | R56: BDL | S56: BDL | T56: BDL | U56: BDL
B57: 1 | C57: 48505 | D57: 2016-05-02 | E57: 09:43:00 | F57: 18.8 | G57: 10.3 | H57: 6.3 | I57: 2.2 | J57: BDL | K57: 12.9 | L57: 15.4 | M57: BDL | N57: 8.8 | O57: 4.1 | P57: 2.6 | Q57: BDL | R57: BDL | S57: BDL | T57: BDL | U57: BDL
B58: Notes:
B59: (1) All units in micrograms per liter (µg/L), also commonly called parts per billion (ppb)
B60: (2) BDL = Below Detection Limit
B61: (3) 1,2-Dichloroethane-d4 surrogate recovery (for THM analysis) was above acceptance limits of 130% for sample Site ID# 24 (at 132%). The sample was rerun out of a second container resulting in a similar high bias for the surrogate. Sample Site ID# 24 THMs may have a high bias.
B62: (4) The recovery for Monochloroacetic acid was just below the acceptance limit of 70% (at 67.5% and 65.4%, respectively) for the matrix spike and matrix spike duplicate for one of two MS/MSD samples in this run. The analysis was accepted based on acceptable ICV, CCV and HCV recoveries. Inadequate sample was available for reanalysis. The result is generally inconsequential because monochloracetic acid is BDL in all analyses.
A64: APRIL
B65: Site ID # | C65: propertyzip | D65: sampledate | E65: sampletime | F65: Total THMs | G65: Chloroform | H65: Bromodichloromethane | I65: Dibromochloromethane | J65: Bromoform | K65: Total Haloacetic acids (HAA5) | L65: Total Haloacetic acids (HAA9) | M65: Monochloroacetic acid | N65: Dichloroacetic acid | O65: Trichloroacetic acid | P65: Bromodichloroacetic acid | Q65: Bromochloroacetic acid | R65: Chlorodibromoacetic acid | S65: Tribromoacetic acid | T65: Dibromoacetic acid | U65: Monobromoacetic acid
B66: 21 | C66: 48505 | D66: 2016-04-06 | E66: 11:45:00 | F66: =SUM(G66:J66) -> 14.6 | G66: 7.6 | H66: 5.0 | I66: 2.0 | J66: BDL | K66: =SUM(M66,N66,O66,T66,U66) -> 10.0 | L66: =SUM(M66:U66) -> 12.3 | M66: BDL | N66: 6.7 | O66: 3.3 | P66: 2.2 | Q66: BDL | R66: BDL | S66: BDL | T66: BDL | U66: BDL
B67: 24 | C67: 48505 | D67: 2016-04-06 | E67: 11:07:00 | F67: =SUM(G67:J67) -> 14.8 | G67: 7.2 | H67: 5.4 | I67: 2.2 | J67: BDL | K67: =SUM(M67,N67,O67,T67,U67) -> 9.5 | L67: =SUM(M67:U67) -> 11.5 | M67: BDL | N67: 6.4 | O67: 3.1 | P67: 2.1 | Q67: BDL | R67: BDL | S67: BDL | T67: BDL | U67: BDL
B68: 23 | C68: 48505 | D68: 2016-04-06 | E68: 10:40:00 | F68: 19.1 | G68: 10.3 | H68: 6.3 | I68: 2.5 | J68: BDL | K68: 10.8 | L68: 13.1 | M68: BDL | N68: 7.3 | O68: 3.5 | P68: 2.3 | Q68: BDL | R68: BDL | S68: BDL | T68: BDL | U68: BDL
B69: 22 | C69: 48506 | D69: 2016-04-06 | E69: 09:40:00 | F69: 16.1 | G69: 8.3 | H69: 5.6 | I69: 2.2 | J69: BDL | K69: 10.1 | L69: 12.5 | M69: BDL | N69: 6.7 | O69: 3.4 | P69: 2.4 | Q69: BDL | R69: BDL | S69: BDL | T69: BDL | U69: BDL
B70: 20 | C70: 48504 | D70: 2016-04-06 | E70: 09:09:00 | F70: 25.5 | G70: 16.0 | H70: 7.0 | I70: 2.5 | J70: BDL | K70: 18.1 | L70: 23.2 | M70: BDL | N70: 12.7 | O70: 5.4 | P70: 2.7 | Q70: 2.3 | R70: BDL | S70: BDL | T70: BDL | U70: BDL
B71: 17 | C71: 48504 | D71: 2016-04-06 | E71: 08:38:00 | F71: 17.7 | G71: 9.9 | H71: 5.7 | I71: 2.1 | J71: BDL | K71: 12.1 | L71: 14.7 | M71: BDL | N71: 8.2 | O71: 3.9 | P71: 2.6 | Q71: BDL | R71: BDL | S71: BDL | T71: BDL | U71: BDL
B72: 15 | C72: 48507 | D72: 2016-04-05 | E72: 16:39:00 | F72: 15.9 | G72: 8.2 | H72: 5.6 | I72: 2.1 | J72: BDL | K72: 11.0 | L72: 13.4 | M72: BDL | N72: 7.4 | O72: 3.6 | P72: 2.4 | Q72: BDL | R72: BDL | S72: BDL | T72: BDL | U72: BDL
B73: 16 | C73: 48503 | D73: 2016-04-05 | E73: 15:57:00 | F73: 25.4 | G73: 15.3 | H73: 7.5 | I73: 2.6 | J73: BDL | K73: 10.3 | L73: 12.3 | M73: BDL | N73: 6.2 | O73: 4.1 | P73: 2.0 | Q73: BDL | R73: BDL | S73: BDL | T73: BDL | U73: BDL
B74: 19 | C74: 48504 | D74: 2016-04-05 | E74: 15:09:00 | F74: 22.2 | G74: 13.2 | H74: 6.6 | I74: 2.4 | J74: BDL | K74: 16.5 | L74: 21.6 | M74: BDL | N74: 11.3 | O74: 5.2 | P74: 2.9 | Q74: 2.2 | R74: BDL | S74: BDL | T74: BDL | U74: BDL
B75: 18 | C75: 48505 | D75: 2016-04-05 | E75: 13:25:00 | F75: 23.4 | G75: 14.0 | H75: 7.1 | I75: 2.4 | J75: BDL | K75: 11.6 | L75: 14.1 | M75: BDL | N75: 7.4 | O75: 4.2 | P75: 2.4 | Q75: BDL | R75: BDL | S75: BDL | T75: BDL | U75: BDL
B76: 14 | C76: 48507 | D76: 2016-04-05 | E76: 11:56:00 | F76: 16.4 | G76: 8.8 | H76: 5.4 | I76: 2.1 | J76: BDL | K76: 11.7 | L76: 14.3 | M76: BDL | N76: 8.0 | O76: 3.8 | P76: 2.5 | Q76: BDL | R76: BDL | S76: BDL | T76: BDL | U76: BDL
B77: 13 | C77: 48507 | D77: 2016-04-05 | E77: 11:01:00 | F77: 15.3 | G77: 8.1 | H77: 5.2 | I77: 2.1 | J77: BDL | K77: 11.2 | L77: 13.8 | M77: BDL | N77: 7.6 | O77: 3.7 | P77: 2.6 | Q77: BDL | R77: BDL | S77: BDL | T77: BDL | U77: BDL
B78: 12 | C78: 48507 | D78: 2016-04-05 | E78: 09:32:00 | F78: 16.2 | G78: 8.9 | H78: 5.3 | I78: 2.0 | J78: BDL | K78: 11.9 | L78: 14.4 | M78: BDL | N78: 8.1 | O78: 3.8 | P78: 2.4 | Q78: BDL | R78: BDL | S78: BDL | T78: BDL | U78: BDL
B79: 11 | C79: 48507 | D79: 2016-04-05 | E79: 08:51:00 | F79: 15.0 | G79: 8.0 | H79: 5.0 | I79: 2.0 | J79: BDL | K79: 11.7 | L79: 14.1 | M79: BDL | N79: 8.0 | O79: 3.7 | P79: 2.4 | Q79: BDL | R79: BDL | S79: BDL | T79: BDL | U79: BDL
B80: 10 | C80: 48503 | D80: 2016-04-04 | E80: 16:21:00 | F80: 26.3 | G80: 15.6 | H80: 7.7 | I80: 3.0 | J80: BDL | K80: 17.8 | L80: 23.2 | M80: BDL | N80: 12.0 | O80: 5.8 | P80: 3.1 | Q80: 2.3 | R80: BDL | S80: BDL | T80: BDL | U80: BDL
B81: 7 | C81: 48506 | D81: 2016-04-04 | E81: 14:10:00 | F81: 20.3 | G81: 11.2 | H81: 6.5 | I81: 2.6 | J81: BDL | K81: 10.1 | L81: 12.4 | M81: BDL | N81: 6.7 | O81: 3.5 | P81: 2.3 | Q81: BDL | R81: BDL | S81: BDL | T81: BDL | U81: BDL
B82: 9 | C82: 48503 | D82: 2016-04-04 | E82: 15:52:00 | F82: 18.9 | G82: 9.8 | H82: 6.4 | I82: 2.7 | J82: BDL | K82: 12.0 | L82: 14.6 | M82: BDL | N82: 8.1 | O82: 3.9 | P82: 2.6 | Q82: BDL | R82: BDL | S82: BDL | T82: BDL | U82: BDL
B83: 8 | C83: 48506 | D83: 2016-04-04 | E83: 15:12:00 | F83: 16.4 | G83: 8.3 | H83: 5.6 | I83: 2.5 | J83: BDL | K83: 9.8 | L83: 12.1 | M83: BDL | N83: 6.5 | O83: 3.2 | P83: 2.3 | Q83: BDL | R83: BDL | S83: BDL | T83: BDL | U83: BDL
B84: 6 | C84: 48506 | D84: 2016-04-04 | E84: 13:36:00 | F84: 16.6 | G84: 8.4 | H84: 5.8 | I84: 2.4 | J84: BDL | K84: 10.5 | L84: 12.8 | M84: BDL | N84: 7.0 | O84: 3.5 | P84: 2.4 | Q84: BDL | R84: BDL | S84: BDL | T84: BDL | U84: BDL
B85: 5 | C85: 48506 | D85: 2016-04-04 | E85: 13:01:00 | F85: 14.2 | G85: 6.7 | H85: 5.1 | I85: 2.3 | J85: BDL | K85: 9.6 | L85: 12.0 | M85: BDL | N85: 6.4 | O85: 3.2 | P85: 2.4 | Q85: BDL | R85: BDL | S85: BDL | T85: BDL | U85: BDL
B86: 4 | C86: 48503 | D86: 2016-04-04 | E86: 12:28:00 | F86: 17.2 | G86: 8.9 | H86: 5.9 | I86: 2.5 | J86: BDL | K86: 12.7 | L86: 17.4 | M86: BDL | N86: 8.5 | O86: 4.1 | P86: 2.7 | Q86: 2.0 | R86: BDL | S86: BDL | T86: BDL | U86: BDL
B87: 3 | C87: 48504 | D87: 2016-04-04 | E87: 11:45:00 | F87: 17.6 | G87: 9.0 | H87: 6.1 | I87: 2.5 | J87: BDL | K87: 12.2 | L87: 14.9 | M87: BDL | N87: 8.2 | O87: 4.0 | P87: 2.7 | Q87: BDL | R87: BDL | S87: BDL | T87: BDL | U87: BDL
B88: 2 | C88: 48505 | D88: 2016-04-04 | E88: 10:49:00 | F88: 17.3 | G88: 8.9 | H88: 6.0 | I88: 2.4 | J88: BDL | K88: 12.4 | L88: 15.0 | M88: BDL | N88: 8.4 | O88: 4.0 | P88: 2.6 | Q88: BDL | R88: BDL | S88: BDL | T88: BDL | U88: BDL
B89: 1 | C89: 48505 | D89: 2016-04-04 | E89: 09:50:00 | F89: 15.2 | G89: 7.5 | H89: 5.4 | I89: 2.3 | J89: BDL | K89: 10.8 | L89: 13.2 | M89: BDL | N89: 7.3 | O89: 3.5 | P89: 2.4 | Q89: BDL | R89: BDL | S89: BDL | T89: BDL | U89: BDL
B90: Notes:
B91: (1) All units in micrograms per liter (µg/L), also commonly called parts per billion (ppb)
B92: (2) BDL = Below Detection Limit
B93: (3) The relative percent difference for Dichloroacetic acid between the primary and secondary confirmation columns was greater than 40% in all of the samples, possibly due to matrix interference. Method 552.3 does not specify a limit for data confirmation. Data results are reported from the primary column, using the secondary column only to confirm analyte detection.
A95: MARCH
B96: Site ID # | C96: propertyzip | D96: sampledate | E96: sampletime | F96: Total THMs | G96: Chloroform | H96: Bromodichloromethane | I96: Dibromochloromethane | J96: Bromoform | K96: Total Haloacetic acids (HAA5) | L96: Total Haloacetic acids (HAA9) | M96: Monochloroacetic acid | N96: Dichloroacetic acid | O96: Trichloroacetic acid | P96: Bromodichloroacetic acid | Q96: Bromochloroacetic acid | R96: Chlorodibromoacetic acid | S96: Tribromoacetic acid | T96: Dibromoacetic acid | U96: Monobromoacetic acid
B97: 21 | C97: 48505 | D97: 2016-03-09 | E97: 11:40:00 | F97: =SUM(G97:J97) -> 12.0 | G97: 5.7 | H97: 4.4 | I97: 2.0 | J97: BDL | K97: =SUM(M97,N97,O97,T97,U97) -> 9.3 | L97: =SUM(M97:U97) -> 12.1 | M97: BDL | N97: 6.1 | O97: 3.3 | P97: 2.8 | Q97: BDL | R97: BDL | S97: BDL | T97: BDL | U97: BDL
B98: 24 | C98: 48505 | D98: 2016-03-09 | E98: 11:09:00 | F98: 12.0 | G98: 5.7 | H98: 4.4 | I98: 2.0 | J98: BDL | K98: 7.0 | L98: =SUM(M98:U98) -> 9.2 | M98: BDL | N98: 4.5 | O98: 2.5 | P98: 2.1 | Q98: BDL | R98: BDL | S98: BDL | T98: BDL | U98: BDL
B99: 23 | C99: 48505 | D99: 2016-03-09 | E99: 09:59:00 | F99: 13.9 | G99: 7.1 | H99: 4.7 | I99: 2.1 | J99: BDL | K99: 10.1 | L99: 13.0 | M99: BDL | N99: 6.6 | O99: 3.5 | P99: 2.9 | Q99: BDL | R99: BDL | S99: BDL | T99: BDL | U99: BDL
B100: 22 | C100: 48506 | D100: 2016-03-09 | E100: 09:37:00 | F100: 12.5 | G100: 5.9 | H100: 4.5 | I100: 2.1 | J100: BDL | K100: 9.3 | L100: 14.1 | M100: BDL | N100: 6.0 | O100: 3.3 | P100: 2.8 | Q100: 2.0 | R100: BDL | S100: BDL | T100: BDL | U100: BDL
B101: 20 | C101: 48504 | D101: 2016-03-09 | E101: 09:04:00 | F101: =SUM(G101:J101) -> 15.1 | G101: 7.8 | H101: 5.2 | I101: 2.2 | J101: BDL | K101: 12.7 | L101: 15.7 | M101: BDL | N101: 8.6 | O101: 4.1 | P101: 3.0 | Q101: BDL | R101: BDL | S101: BDL | T101: BDL | U101: BDL
B102: 19 | C102: 48504 | D102: 2016-03-08 | E102: 15:21:00 | F102: 16.0 | G102: 8.7 | H102: 5.2 | I102: 2.1 | J102: BDL | K102: 14.8 | L102: 20.6 | M102: BDL | N102: 9.8 | O102: 5.1 | P102: 3.7 | Q102: 2.0 | R102: BDL | S102: BDL | T102: BDL | U102: BDL
B103: 18 | C103: 48505 | D103: 2016-03-08 | E103: 14:43:00 | F103: 17.3 | G103: 9.7 | H103: 5.4 | I103: 2.2 | J103: BDL | K103: 13.5 | L103: 16.9 | M103: BDL | N103: 8.4 | O103: 5.1 | P103: 3.5 | Q103: BDL | R103: BDL | S103: BDL | T103: BDL | U103: BDL
B104: 17 | C104: 48504 | D104: 2016-03-08 | E104: 14:20:00 | F104: 23.4 | G104: 13.9 | H104: 6.8 | I104: 2.7 | J104: BDL | K104: 17.9 | L104: 24.2 | M104: BDL | N104: 11.8 | O104: 6.1 | P104: 3.9 | Q104: 2.4 | R104: BDL | S104: BDL | T104: BDL | U104: BDL
B105: 16 | C105: 48503 | D105: 2016-03-08 | E105: 13:42:00 | F105: 23.7 | G105: 13.6 | H105: 7.2 | I105: 2.9 | J105: BDL | K105: 6.3 | L105: 6.3 | M105: BDL | N105: 4.2 | O105: 2.1 | P105: BDL | Q105: BDL | R105: BDL | S105: BDL | T105: BDL | U105: BDL
B106: 15 | C106: 48507 | D106: 2016-03-08 | E106: 12:51:00 | F106: 13.8 | G106: 6.9 | H106: 4.8 | I106: 2.1 | J106: BDL | K106: 12.7 | L106: 16.2 | M106: BDL | N106: 8.2 | O106: 4.5 | P106: 3.5 | Q106: BDL | R106: BDL | S106: BDL | T106: BDL | U106: BDL
B107: 14 | C107: 48507 | D107: 2016-03-08 | E107: 12:27:00 | F107: 14.0 | G107: 7.2 | H107: 4.8 | I107: 2.1 | J107: BDL | K107: 12.3 | L107: 15.8 | M107: BDL | N107: 7.9 | O107: 4.4 | P107: 3.4 | Q107: BDL | R107: BDL | S107: BDL | T107: BDL | U107: BDL
B108: 13 | C108: 48507 | D108: 2016-03-08 | E108: 11:37:00 | F108: 13.1 | G108: 6.6 | H108: 4.5 | I108: 1.9 | J108: BDL | K108: 12.0 | L108: 15.4 | M108: BDL | N108: 7.7 | O108: 4.2 | P108: 3.5 | Q108: BDL | R108: BDL | S108: BDL | T108: BDL | U108: BDL
B109: 12 | C109: 48507 | D109: 2016-03-08 | E109: 10:10:00 | F109: 14.9 | G109: 8.0 | H109: 4.9 | I109: 2.0 | J109: BDL | K109: 14.0 | L109: 17.5 | M109: BDL | N109: 9.2 | O109: 4.8 | P109: 3.5 | Q109: BDL | R109: BDL | S109: BDL | T109: BDL | U109: BDL
B110: 11 | C110: 48507 | D110: 2016-03-08 | E110: 09:30:00 | F110: 14.0 | G110: 7.5 | H110: 4.6 | I110: 1.9 | J110: BDL | K110: 14.0 | L110: 17.7 | M110: BDL | N110: 9.0 | O110: 5.0 | P110: 3.7 | Q110: BDL | R110: BDL | S110: BDL | T110: BDL | U110: BDL
B111: 10 | C111: 48503 | D111: 2016-03-07 | E111: 15:14:00 | F111: =SUM(G111:J111) -> 20.0 | G111: 11.5 | H111: 6.1 | I111: 2.4 | J111: BDL | K111: =SUM(M111,N111,O111,T111,U111) -> 19.7 | L111: =SUM(M111:U111) -> 26.6 | M111: BDL | N111: 12.9 | O111: 6.8 | P111: 4.4 | Q111: 2.5 | R111: BDL | S111: BDL | T111: BDL | U111: BDL
B112: 9 | C112: 48503 | D112: 2016-03-07 | E112: 14:27:00 | F112: =SUM(G112:J112) -> 13.1 | G112: 6.7 | H112: 4.5 | I112: 1.9 | J112: BDL | K112: =SUM(M112,N112,O112,T112,U112) -> 12.0 | L112: =SUM(M112:U112) -> 15.4 | M112: BDL | N112: 7.7 | O112: 4.4 | P112: 3.4 | Q112: BDL | R112: BDL | S112: BDL | T112: BDL | U112: BDL
B113: 8 | C113: 48506 | D113: 2016-03-07 | E113: 13:40:00 | F113: 14.0 | G113: 7.7 | H113: 4.5 | I113: 1.8 | J113: BDL | K113: 12.5 | L113: 15.8 | M113: BDL | N113: 8.1 | O113: 4.4 | P113: 3.4 | Q113: BDL | R113: BDL | S113: BDL | T113: BDL | U113: BDL
B114: 7 | C114: 48506 | D114: 2016-03-07 | E114: 12:54:00 | F114: 14.5 | G114: 7.7 | H114: 4.8 | I114: 1.9 | J114: BDL | K114: 12.4 | L114: 15.6 | M114: BDL | N114: 7.8 | O114: 4.5 | P114: 3.2 | Q114: BDL | R114: BDL | S114: BDL | T114: BDL | U114: BDL
B115: 6 | C115: 48506 | D115: 2016-03-07 | E115: 12:26:00 | F115: 14.9 | G115: 8.0 | H115: 5.0 | I115: 1.9 | J115: BDL | K115: 13.7 | L115: 17.2 | M115: BDL | N115: 8.8 | O115: 5.0 | P115: 3.4 | Q115: BDL | R115: BDL | S115: BDL | T115: BDL | U115: BDL
B116: 5 | C116: 48506 | D116: 2016-03-07 | E116: 11:15:00 | F116: 11.7 | G116: 5.7 | H116: 4.1 | I116: 1.8 | J116: BDL | K116: 10.8 | L116: 14.1 | M116: BDL | N116: 6.9 | O116: 3.9 | P116: 3.3 | Q116: BDL | R116: BDL | S116: BDL | T116: BDL | U116: BDL
B117: 4 | C117: 48503 | D117: 2016-03-07 | E117: 10:40:00 | F117: 14.2 | G117: 7.3 | H117: 4.8 | I117: 2.0 | J117: BDL | K117: 12.7 | L117: 15.9 | M117: BDL | N117: 8.1 | O117: 4.5 | P117: 3.2 | Q117: BDL | R117: BDL | S117: BDL | T117: BDL | U117: BDL
B118: 3 | C118: 48504 | D118: 2016-03-07 | E118: 10:15:00 | F118: 13.2 | G118: 6.8 | H118: 4.5 | I118: 1.8 | J118: BDL | K118: 13.0 | L118: 16.4 | M118: BDL | N118: 8.3 | O118: 4.8 | P118: 3.4 | Q118: BDL | R118: BDL | S118: BDL | T118: BDL | U118: BDL
B119: 2 | C119: 48505 | D119: 2016-03-07 | E119: 09:40:00 | F119: 13.7 | G119: 7.1 | H119: 4.7 | I119: 1.9 | J119: BDL | K119: 13.5 | L119: 17.1 | M119: BDL | N119: 8.5 | O119: 5.0 | P119: 3.6 | Q119: BDL | R119: BDL | S119: BDL | T119: BDL | U119: BDL
B120: 1 | C120: 48505 | D120: 2016-03-07 | E120: 09:18:00 | F120: 12.4 | G120: 6.2 | H120: 4.4 | I120: 1.8 | J120: BDL | K120: 13.1 | L120: 16.7 | M120: BDL | N120: 8.3 | O120: 4.8 | P120: 3.6 | Q120: BDL | R120: BDL | S120: BDL | T120: BDL | U120: BDL
B121: Notes:
B122: (1) All units in micrograms per liter (µg/L), also commonly called parts per billion (ppb)
B123: (2) BDL = Below Detection Limit
B124: (3) Samples were received on ice at the lab, however the temperature of the samples was above receipt criteria of ≤ 6 °C. All other criteria met SOP requirements for sample receipt. Samples received on 3/8/2016 were 12.5 °C, samples received on 3/9.2016 were 10.2 °C, and samples received on 3/10/2016 were 9.2 °C. Samples were analyzed based on the cooler still having sufficient ice when received at the laboratory as per the method requirement.
B125: (4) The recoveries for Trichloroacetic acid, Chlorodibromoacetic acid and Tribromoacetic acid were outside of acceptance limits for Matrix Spike/Matrix Spike Duplicate. The analysis was accepted by the lab based on acceptable LCV, CCV and HCV recoveries. Results for these analytes are suspect due to matrix effects.
B126: (5) The relative percent difference for Dichloroacetic acid between the primary and secondary confirmation columns was greater than 40% in all of the samples, possibly due to matrix interference. Method 552.3 does not specify a limit for data confirmation. Data results are reported from the primary column, using the secondary column only to confirm analyte detection.

Sheet ESRI_ATTRIBUTES_SHEET (hidden)

Sheet ESRI_FEATURES_SHEET (hidden)

Sheet ESRI_STATUS_SHEET (hidden)

Sheet ESRI_MAPINFO_SHEET (hidden)
A1: {"extentsLinked":false,"version":1,"maps":[]}
